[Event "Titled Tuesday Blitz April 05 Late 2022"]
[White "Yuan, Qingyu"]
[Black "Pinheiro, Iung Alicio de O."]
[WhiteFideId "8609772"]
[BlackFideId "2104350"]
[WhiteElo "2359"]
[BlackElo "2575"]
[Result "1-0"]
[Round "10"]
[TimeControl "180+1"]
[Date "2022.04.05"]
[WhiteClock "0:00:22"]
[BlackClock "0:00:08"]

1. e4 {[%clk 0:03:00]}  c5 {[%clk 0:02:58]} 2. Nf3 {[%clk 0:03:01]}  Nc6 {[%clk 0:02:58]} 3. Bc4 {[%clk 0:03:01]}  e6 {[%clk 0:02:57]} 4. O-O {[%clk 0:03:01]}  a6 {[%clk 0:02:53]} 5. Re1 {[%clk 0:03:00]}  b5 {[%clk 0:02:51]} 6. Bf1 {[%clk 0:03:00]}  Bb7 {[%clk 0:02:51]} 7. b3 {[%clk 0:02:50]}  Nf6 {[%clk 0:02:46]} 8. Bb2 {[%clk 0:02:44]}  Be7 {[%clk 0:02:46]} 9. e5 {[%clk 0:02:39]}  Nd5 {[%clk 0:02:45]} 10. c4 {[%clk 0:02:39]}  bxc4 {[%clk 0:02:42]} 11. bxc4 {[%clk 0:02:39]}  Nf4 {[%clk 0:02:22]} 12. Nc3 {[%clk 0:02:35]}  O-O {[%clk 0:02:14]} 13. Ne4 {[%clk 0:02:32]}  Rb8 {[%clk 0:02:06]} 14. Rb1 {[%clk 0:02:24]}  Qc7 {[%clk 0:02:05]} 15. Bc3 {[%clk 0:02:11]}  Ng6 {[%clk 0:01:57]} 16. Ng3 {[%clk 0:02:06]}  Ba8 {[%clk 0:01:40]} 17. Nh5 {[%clk 0:02:05]}  Rfd8 {[%clk 0:01:29]} 18. Qa4 {[%clk 0:01:59]}  Rb6 {[%clk 0:01:18]} 19. Rxb6 {[%clk 0:01:47]}  Qxb6 {[%clk 0:01:19]} 20. Bd3 {[%clk 0:01:44]}  Nb4 {[%clk 0:01:14]} 21. Be2 {[%clk 0:01:34]}  Qc6 {[%clk 0:01:08]} 22. Qb3 {[%clk 0:01:26]}  Qe4 {[%clk 0:00:54]} 23. a3 {[%clk 0:01:18]}  Nc6 {[%clk 0:00:35]} 24. Ng3 {[%clk 0:00:38]}  Qf4 {[%clk 0:00:31]} 25. Qa4 {[%clk 0:00:28]}  Ncxe5 {[%clk 0:00:23]} 26. Nxe5 {[%clk 0:00:20]}  Nxe5 {[%clk 0:00:23]} 27. Qxa6 {[%clk 0:00:19]}  Bc6 {[%clk 0:00:20]} 28. h3 {[%clk 0:00:14]}  Bh4 {[%clk 0:00:17]} 29. Bf1 {[%clk 0:00:13]}  Nf3+ {[%clk 0:00:13]} 30. gxf3 {[%clk 0:00:11]}  Qxf3 {[%clk 0:00:14]} 31. Re3 {[%clk 0:00:10]}  Qf4 {[%clk 0:00:12]} 32. Bg2 {[%clk 0:00:10]}  Bxg2 {[%clk 0:00:11]} 33. Kxg2 {[%clk 0:00:10]}  Be7 {[%clk 0:00:10]} 34. Qb7 {[%clk 0:00:09]}  h5 {[%clk 0:00:09]} 35. Qe4 {[%clk 0:00:09]}  Qh6 {[%clk 0:00:08]} 36. Qe5 {[%clk 0:00:10]}  Bf8 {[%clk 0:00:08]} 37. Qxh5 {[%clk 0:00:09]}  Qf4 {[%clk 0:00:08]} 38. Qg4 {[%clk 0:00:09]}  Qh6 {[%clk 0:00:07]} 39. Rf3 {[%clk 0:00:09]}  d5 {[%clk 0:00:07]} 40. cxd5 {[%clk 0:00:09]}  exd5 {[%clk 0:00:08]} 41. Be5 {[%clk 0:00:09]}  d4 {[%clk 0:00:08]} 42. Nf5 {[%clk 0:00:09]}  Qg6 {[%clk 0:00:08]} 43. Qxg6 {[%clk 0:00:08]}  fxg6 {[%clk 0:00:09]} 44. Ng3 {[%clk 0:00:09]}  c4 {[%clk 0:00:09]} 45. Ne4 {[%clk 0:00:09]}  Be7 {[%clk 0:00:07]} 46. a4 {[%clk 0:00:07]}  Rd5 {[%clk 0:00:04]} 47. Bc7 {[%clk 0:00:07]}  Bb4 {[%clk 0:00:03]} 48. a5 {[%clk 0:00:07]}  Bxa5 {[%clk 0:00:03]} 49. Bxa5 {[%clk 0:00:07]}  Rxa5 {[%clk 0:00:04]} 50. Rf4 {[%clk 0:00:08]}  Ra2 {[%clk 0:00:04]} 51. Kf3 {[%clk 0:00:08]}  d3 {[%clk 0:00:04]} 52. Ke3 {[%clk 0:00:08]}  Rc2 {[%clk 0:00:04]} 53. Nc3 {[%clk 0:00:08]}  Ra2 {[%clk 0:00:04]} 54. Rxc4 {[%clk 0:00:08]}  Ra3 {[%clk 0:00:03]} 55. Kxd3 {[%clk 0:00:09]}  Ra8 {[%clk 0:00:04]} 56. Rg4 {[%clk 0:00:09]}  Rd8+ {[%clk 0:00:05]} 57. Ke2 {[%clk 0:00:09]}  Kf7 {[%clk 0:00:05]} 58. Ne4 {[%clk 0:00:10]}  Re8 {[%clk 0:00:06]} 59. d3 {[%clk 0:00:10]}  Kg8 {[%clk 0:00:07]} 60. Ke3 {[%clk 0:00:11]}  Ra8 {[%clk 0:00:07]} 61. Rxg6 {[%clk 0:00:11]}  Ra1 {[%clk 0:00:08]} 62. Rg3 {[%clk 0:00:12]}  Kf7 {[%clk 0:00:08]} 63. Rf3+ {[%clk 0:00:12]}  Kg8 {[%clk 0:00:08]} 64. Rg3 {[%clk 0:00:13]}  Re1+ {[%clk 0:00:08]} 65. Kf3 {[%clk 0:00:14]}  Ra1 {[%clk 0:00:09]} 66. Kg2 {[%clk 0:00:14]}  Rd1 {[%clk 0:00:09]} 67. h4 {[%clk 0:00:15]}  Ra1 {[%clk 0:00:09]} 68. Ng5 {[%clk 0:00:15]}  Ra3 {[%clk 0:00:09]} 69. Ne6 {[%clk 0:00:16]}  Ra8 {[%clk 0:00:09]} 70. Nxg7 {[%clk 0:00:16]}  Kh8 {[%clk 0:00:10]} 71. Nf5 {[%clk 0:00:16]}  Rd8 {[%clk 0:00:11]} 72. d4 {[%clk 0:00:16]}  Rf8 {[%clk 0:00:09]} 73. Rg5 {[%clk 0:00:17]}  Rf6 {[%clk 0:00:09]} 74. Kg3 {[%clk 0:00:17]}  Rf8 {[%clk 0:00:09]} 75. Kg4 {[%clk 0:00:18]}  Rf6 {[%clk 0:00:09]} 76. d5 {[%clk 0:00:18]}  Rf8 {[%clk 0:00:09]} 77. d6 {[%clk 0:00:19]}  Rf7 {[%clk 0:00:10]} 78. f4 {[%clk 0:00:19]}  Rd7 {[%clk 0:00:09]} 79. h5 {[%clk 0:00:20]}  Rf7 {[%clk 0:00:09]} 80. Rg6 {[%clk 0:00:21]}  Rf8 {[%clk 0:00:08]} 81. Kg5 {[%clk 0:00:21]}  Rf7 {[%clk 0:00:09]} 82. Re6 {[%clk 0:00:21]}  Kh7 {[%clk 0:00:08]} 83. Re7 {[%clk 0:00:21]}  Kg8 {[%clk 0:00:08]} 84. Nh6+ {[%clk 0:00:21]}  Kh8 {[%clk 0:00:07]} 85. Nxf7+ {[%clk 0:00:21]}  Kg8 {[%clk 0:00:07]} 86. Ne5 {[%clk 0:00:21]}  Kf8 {[%clk 0:00:07]} 87. h6 {[%clk 0:00:22]}  Kg8 {[%clk 0:00:07]} 88. Kf6 {[%clk 0:00:21]}  Kh8 {[%clk 0:00:08]} 89. Kg6 {[%clk 0:00:22]}  Kg8 {[%clk 0:00:08]} 90. Re8# {[%clk 0:00:22]} 1-0


[Site "https://www.chess.com"]

[Event "Titled Tuesday Blitz April 05 Late 2022"]
[White "Zherebtsova, Alexandra"]
[Black "Swicarz, Maciej"]
[WhiteFideId "24129518"]
[BlackFideId "1113585"]
[WhiteElo "2405"]
[BlackElo "2511"]
[Result "1-0"]
[Round "10"]
[TimeControl "180+1"]
[Date "2022.04.06"]
[WhiteClock "0:00:08"]
[BlackClock "0:00:08"]

1. d4 {[%clk 0:03:00]}  f5 {[%clk 0:02:54]} 2. g3 {[%clk 0:02:59]}  Nf6 {[%clk 0:02:53]} 3. Bg2 {[%clk 0:03:00]}  d6 {[%clk 0:02:53]} 4. Nf3 {[%clk 0:02:59]}  g6 {[%clk 0:02:52]} 5. O-O {[%clk 0:02:59]}  Bg7 {[%clk 0:02:52]} 6. b3 {[%clk 0:03:00]}  O-O {[%clk 0:02:51]} 7. Bb2 {[%clk 0:02:56]}  Ne4 {[%clk 0:02:49]} 8. Nfd2 {[%clk 0:02:54]}  c5 {[%clk 0:02:42]} 9. Nxe4 {[%clk 0:02:51]}  fxe4 {[%clk 0:02:43]} 10. Bxe4 {[%clk 0:02:48]}  Nc6 {[%clk 0:02:38]} 11. e3 {[%clk 0:02:39]}  Bh3 {[%clk 0:02:36]} 12. Bg2 {[%clk 0:02:39]}  Bxg2 {[%clk 0:02:36]} 13. Kxg2 {[%clk 0:02:40]}  cxd4 {[%clk 0:02:30]} 14. exd4 {[%clk 0:02:39]}  Qa5 {[%clk 0:02:28]} 15. c3 {[%clk 0:02:16]}  e5 {[%clk 0:02:18]} 16. d5 {[%clk 0:02:10]}  Ne7 {[%clk 0:02:14]} 17. c4 {[%clk 0:02:02]}  Nf5 {[%clk 0:02:14]} 18. Na3 {[%clk 0:01:55]}  Rf7 {[%clk 0:02:08]} 19. Nc2 {[%clk 0:01:51]}  Raf8 {[%clk 0:02:07]} 20. Qe2 {[%clk 0:01:40]}  Bh6 {[%clk 0:02:03]} 21. a3 {[%clk 0:01:24]}  a6 {[%clk 0:01:56]} 22. b4 {[%clk 0:01:19]}  Qc7 {[%clk 0:01:56]} 23. Ne3 {[%clk 0:01:08]}  Bxe3 {[%clk 0:01:40]} 24. fxe3 {[%clk 0:01:07]}  b5 {[%clk 0:01:38]} 25. cxb5 {[%clk 0:00:57]}  axb5 {[%clk 0:01:39]} 26. e4 {[%clk 0:00:55]}  Ne3+ {[%clk 0:01:28]} 27. Qxe3 {[%clk 0:00:55]}  Qc2+ {[%clk 0:01:28]} 28. Kg1 {[%clk 0:00:55]}  Qxb2 {[%clk 0:01:25]} 29. Rab1 {[%clk 0:00:52]}  Rxf1+ {[%clk 0:01:23]} 30. Rxf1 {[%clk 0:00:51]}  Rxf1+ {[%clk 0:01:22]} 31. Kxf1 {[%clk 0:00:52]}  Qxh2 {[%clk 0:01:22]} 32. Qd3 {[%clk 0:00:49]}  Kg7 {[%clk 0:01:09]} 33. Qf3 {[%clk 0:00:47]}  h5 {[%clk 0:01:01]} 34. Qc3 {[%clk 0:00:42]}  Qh1+ {[%clk 0:00:59]} 35. Kf2 {[%clk 0:00:40]}  Qxe4 {[%clk 0:00:58]} 36. Qc7+ {[%clk 0:00:40]}  Kh6 {[%clk 0:00:59]} 37. Qxd6 {[%clk 0:00:39]}  Qd4+ {[%clk 0:00:59]} 38. Kg2 {[%clk 0:00:37]}  Qd2+ {[%clk 0:00:59]} 39. Kh3 {[%clk 0:00:35]}  Qe1 {[%clk 0:00:47]} 40. Qf8+ {[%clk 0:00:29]}  Kg5 {[%clk 0:00:47]} 41. Qe7+ {[%clk 0:00:26]}  Kf5 {[%clk 0:00:43]} 42. Qe6+ {[%clk 0:00:26]}  Ke4 {[%clk 0:00:42]} 43. Kh4 {[%clk 0:00:23]}  g5+ {[%clk 0:00:37]} 44. Kxg5 {[%clk 0:00:21]}  Qxg3+ {[%clk 0:00:38]} 45. Kxh5 {[%clk 0:00:21]}  Kf4 {[%clk 0:00:34]} 46. Qf6+ {[%clk 0:00:17]}  Ke4 {[%clk 0:00:34]} 47. Qe6 {[%clk 0:00:15]}  Kd4 {[%clk 0:00:31]} 48. d6 {[%clk 0:00:14]}  Qh2+ {[%clk 0:00:30]} 49. Kg6 {[%clk 0:00:14]}  Qg3+ {[%clk 0:00:28]} 50. Kf7 {[%clk 0:00:14]}  Qf3+ {[%clk 0:00:26]} 51. Ke7 {[%clk 0:00:14]}  Qb7+ {[%clk 0:00:23]} 52. d7 {[%clk 0:00:14]}  e4 {[%clk 0:00:23]} 53. Qd6+ {[%clk 0:00:11]}  Kc3 {[%clk 0:00:22]} 54. Qc5+ {[%clk 0:00:11]}  Kd3 {[%clk 0:00:22]} 55. Qc8 {[%clk 0:00:10]}  Qa7 {[%clk 0:00:20]} 56. Ke8 {[%clk 0:00:10]}  Qxa3 {[%clk 0:00:14]} 57. d8=Q+ {[%clk 0:00:10]}  Ke3 {[%clk 0:00:14]} 58. Qc5+ {[%clk 0:00:09]}  Ke2 {[%clk 0:00:13]} 59. Qdd4 {[%clk 0:00:08]}  Qa8+ {[%clk 0:00:12]} 60. Ke7 {[%clk 0:00:09]}  Qb7+ {[%clk 0:00:11]} 61. Ke6 {[%clk 0:00:09]}  Kf3 {[%clk 0:00:08]} 62. Qe3+ {[%clk 0:00:08]}  Kg4 {[%clk 0:00:08]} 63. Qcg5# {[%clk 0:00:08]} 1-0


[Site "https://www.chess.com"]

[Event "Titled Tuesday Blitz April 05 Late 2022"]
[White "Abdyzhapar, Asylbek"]
[Black "Mickiewicz, Piotr"]
[WhiteFideId "13800337"]
[BlackFideId "1114891"]
[WhiteElo "2331"]
[BlackElo "2266"]
[Result "0-1"]
[Round "11"]
[TimeControl "180+1"]
[Date "2022.04.05"]
[WhiteClock "0:01:12"]
[BlackClock "0:00:20"]

1. c4 {[%clk 0:02:58]}  Nf6 {[%clk 0:02:59]} 2. g3 {[%clk 0:02:57]}  g6 {[%clk 0:03:00]} 3. Bg2 {[%clk 0:02:57]}  Bg7 {[%clk 0:03:01]} 4. b3 {[%clk 0:02:57]}  O-O {[%clk 0:03:02]} 5. Bb2 {[%clk 0:02:57]}  d6 {[%clk 0:03:03]} 6. Nf3 {[%clk 0:02:57]}  c5 {[%clk 0:03:02]} 7. O-O {[%clk 0:02:57]}  Nc6 {[%clk 0:03:01]} 8. e3 {[%clk 0:02:56]}  Bf5 {[%clk 0:02:54]} 9. d3 {[%clk 0:02:56]}  a6 {[%clk 0:02:53]} 10. Nc3 {[%clk 0:02:55]}  Rb8 {[%clk 0:02:51]} 11. a4 {[%clk 0:02:53]}  Na5 {[%clk 0:02:28]} 12. Re1 {[%clk 0:02:51]}  Qb6 {[%clk 0:02:21]} 13. e4 {[%clk 0:02:46]}  Bg4 {[%clk 0:02:19]} 14. Ra3 {[%clk 0:02:40]}  Nc6 {[%clk 0:02:15]} 15. h3 {[%clk 0:02:33]}  Bxf3 {[%clk 0:02:13]} 16. Bxf3 {[%clk 0:02:33]}  e6 {[%clk 0:02:11]} 17. Bg2 {[%clk 0:02:32]}  Nd7 {[%clk 0:02:09]} 18. Qa1 {[%clk 0:02:31]}  Nd4 {[%clk 0:02:08]} 19. a5 {[%clk 0:02:29]}  Qc7 {[%clk 0:02:06]} 20. Qd1 {[%clk 0:02:28]}  Ne5 {[%clk 0:02:04]} 21. f4 {[%clk 0:02:25]}  Nec6 {[%clk 0:02:03]} 22. Kh1 {[%clk 0:02:23]}  Nxa5 {[%clk 0:02:02]} 23. e5 {[%clk 0:02:21]}  dxe5 {[%clk 0:01:57]} 24. fxe5 {[%clk 0:02:21]}  Nac6 {[%clk 0:01:53]} 25. Ne4 {[%clk 0:02:20]}  Qxe5 {[%clk 0:01:47]} 26. g4 {[%clk 0:02:06]}  f5 {[%clk 0:01:13]} 27. gxf5 {[%clk 0:02:04]}  gxf5 {[%clk 0:01:11]} 28. Ng5 {[%clk 0:02:03]}  Qf6 {[%clk 0:00:59]} 29. Nxe6 {[%clk 0:02:00]}  Kh8 {[%clk 0:00:48]} 30. Nxg7 {[%clk 0:01:58]}  Qxg7 {[%clk 0:00:47]} 31. b4 {[%clk 0:01:55]}  f4 {[%clk 0:00:34]} 32. Qg4 {[%clk 0:01:50]}  Qf6 {[%clk 0:00:31]} 33. Bd5 {[%clk 0:01:40]}  Rg8 {[%clk 0:00:28]} 34. Bxg8 {[%clk 0:01:33]}  Rxg8 {[%clk 0:00:29]} 35. Qh5 {[%clk 0:01:33]}  f3 {[%clk 0:00:28]} 36. Raa1 {[%clk 0:01:23]}  f2 {[%clk 0:00:28]} 37. Rf1 {[%clk 0:01:22]}  Ne5 {[%clk 0:00:20]} 38. bxc5 {[%clk 0:01:18]}  Qc6+ {[%clk 0:00:19]} 39. Kh2 {[%clk 0:01:12]}  Qg2# {[%clk 0:00:20]} 0-1


[Site "https://www.chess.com"]

[Event "Titled Tuesday Blitz April 05 Late 2022"]
[White "Andrews, Todd"]
[Black "Buchenau, Frank"]
[WhiteFideId "2012456"]
[BlackFideId "4604350"]
[WhiteElo "2321"]
[BlackElo "2461"]
[Result "1-0"]
[Round "11"]
[TimeControl "180+1"]
[Date "2022.04.06"]
[WhiteClock "0:00:35"]
[BlackClock "0:00:11"]

1. e4 {[%clk 0:03:00]}  e6 {[%clk 0:02:54]} 2. d4 {[%clk 0:03:00]}  d5 {[%clk 0:02:54]} 3. exd5 {[%clk 0:03:00]}  exd5 {[%clk 0:02:53]} 4. c4 {[%clk 0:03:01]}  Nf6 {[%clk 0:02:53]} 5. Nc3 {[%clk 0:03:02]}  Be7 {[%clk 0:02:53]} 6. Nf3 {[%clk 0:03:02]}  O-O {[%clk 0:02:53]} 7. Bd3 {[%clk 0:03:03]}  dxc4 {[%clk 0:02:53]} 8. Bxc4 {[%clk 0:03:03]}  c6 {[%clk 0:02:53]} 9. O-O {[%clk 0:03:04]}  Nbd7 {[%clk 0:02:54]} 10. h3 {[%clk 0:03:03]}  Nb6 {[%clk 0:02:54]} 11. Bd3 {[%clk 0:03:03]}  Be6 {[%clk 0:02:51]} 12. Re1 {[%clk 0:03:01]}  Nbd5 {[%clk 0:02:38]} 13. Bg5 {[%clk 0:02:52]}  Qa5 {[%clk 0:02:31]} 14. Bd2 {[%clk 0:02:46]}  Qc7 {[%clk 0:02:22]} 15. Ng5 {[%clk 0:02:28]}  Bc8 {[%clk 0:02:00]} 16. Nxd5 {[%clk 0:02:14]}  cxd5 {[%clk 0:02:00]} 17. Rc1 {[%clk 0:02:14]}  Qd8 {[%clk 0:01:51]} 18. Bf4 {[%clk 0:02:00]}  h6 {[%clk 0:01:45]} 19. Nf3 {[%clk 0:02:00]}  Be6 {[%clk 0:01:44]} 20. Rc7 {[%clk 0:01:56]}  Bd6 {[%clk 0:01:29]} 21. Bxd6 {[%clk 0:01:55]}  Qxd6 {[%clk 0:01:30]} 22. Rxb7 {[%clk 0:01:56]}  Rfb8 {[%clk 0:01:24]} 23. Rxb8+ {[%clk 0:01:51]}  Rxb8 {[%clk 0:01:24]} 24. b3 {[%clk 0:01:47]}  Qa3 {[%clk 0:01:21]} 25. Bb1 {[%clk 0:01:44]}  a5 {[%clk 0:01:17]} 26. Qc1 {[%clk 0:01:38]}  Qb4 {[%clk 0:01:05]} 27. Qc5 {[%clk 0:01:25]}  Qxc5 {[%clk 0:01:00]} 28. dxc5 {[%clk 0:01:25]}  Rc8 {[%clk 0:01:00]} 29. Rc1 {[%clk 0:01:23]}  Nd7 {[%clk 0:00:57]} 30. c6 {[%clk 0:01:23]}  Nb8 {[%clk 0:00:54]} 31. Nd4 {[%clk 0:01:23]}  Bd7 {[%clk 0:00:48]} 32. Bf5 {[%clk 0:01:21]}  Bxf5 {[%clk 0:00:29]} 33. Nxf5 {[%clk 0:01:21]}  Kf8 {[%clk 0:00:22]} 34. Nd4 {[%clk 0:01:17]}  Ke7 {[%clk 0:00:22]} 35. Kf1 {[%clk 0:01:02]}  g6 {[%clk 0:00:21]} 36. Rc5 {[%clk 0:00:52]}  Kd6 {[%clk 0:00:19]} 37. Rxa5 {[%clk 0:00:52]}  Ke5 {[%clk 0:00:18]} 38. Nf3+ {[%clk 0:00:38]}  Kd6 {[%clk 0:00:18]} 39. Ra7 {[%clk 0:00:37]}  Rxc6 {[%clk 0:00:14]} 40. Rxf7 {[%clk 0:00:35]}  Rc1+ {[%clk 0:00:14]} 41. Ke2 {[%clk 0:00:35]}  Rc2+ {[%clk 0:00:14]} 42. Ke3 {[%clk 0:00:35]}  Nc6 {[%clk 0:00:13]} 43. Rf6+ {[%clk 0:00:34]}  Kc5 {[%clk 0:00:12]} 44. Rxc6+ {[%clk 0:00:34]}  Kxc6 {[%clk 0:00:11]} 45. Nd4+ {[%clk 0:00:35]} 1-0


[Site "https://www.chess.com"]

[Event "Titled Tuesday Blitz April 05 Late 2022"]
[White "Czopor, Maciej"]
[Black "Khripachenko, Alexander"]
[WhiteFideId "21805431"]
[BlackFideId "54184975"]
[WhiteElo "1999"]
[BlackElo "2193"]
[Result "1/2-1/2"]
[Round "11"]
[TimeControl "180+1"]
[Date "2022.04.05"]
[WhiteClock "0:00:21"]
[BlackClock "0:01:23"]

1. Nf3 {[%clk 0:03:00]}  Nf6 {[%clk 0:02:59]} 2. g3 {[%clk 0:03:01]}  g6 {[%clk 0:02:59]} 3. Bg2 {[%clk 0:03:01]}  Bg7 {[%clk 0:03:00]} 4. O-O {[%clk 0:03:02]}  O-O {[%clk 0:03:00]} 5. d3 {[%clk 0:03:03]}  d5 {[%clk 0:03:01]} 6. Nc3 {[%clk 0:03:02]}  c5 {[%clk 0:03:01]} 7. e4 {[%clk 0:03:03]}  Nc6 {[%clk 0:03:01]} 8. exd5 {[%clk 0:03:00]}  Nxd5 {[%clk 0:03:02]} 9. Bd2 {[%clk 0:03:00]}  Nc7 {[%clk 0:02:45]} 10. Re1 {[%clk 0:02:56]}  e5 {[%clk 0:02:44]} 11. Be3 {[%clk 0:02:33]}  Ne6 {[%clk 0:02:41]} 12. Nd2 {[%clk 0:02:27]}  Ned4 {[%clk 0:02:30]} 13. Nc4 {[%clk 0:02:22]}  Be6 {[%clk 0:02:23]} 14. Bxd4 {[%clk 0:02:09]}  cxd4 {[%clk 0:02:16]} 15. Ne4 {[%clk 0:02:03]}  Qd7 {[%clk 0:02:12]} 16. Nc5 {[%clk 0:02:02]}  Qe7 {[%clk 0:02:12]} 17. Nxe6 {[%clk 0:01:58]}  Qxe6 {[%clk 0:02:12]} 18. a4 {[%clk 0:01:39]}  Rac8 {[%clk 0:02:11]} 19. Qd2 {[%clk 0:01:34]}  Rfe8 {[%clk 0:02:11]} 20. Re2 {[%clk 0:01:34]}  Qd7 {[%clk 0:02:06]} 21. Rae1 {[%clk 0:01:28]}  f6 {[%clk 0:02:06]} 22. b4 {[%clk 0:01:15]}  Bf8 {[%clk 0:02:05]} 23. b5 {[%clk 0:01:15]}  Nb4 {[%clk 0:02:04]} 24. Rb1 {[%clk 0:00:57]}  Na2 {[%clk 0:01:58]} 25. Ree1 {[%clk 0:00:50]}  Nc3 {[%clk 0:01:57]} 26. Rb3 {[%clk 0:00:50]}  Nxa4 {[%clk 0:01:54]} 27. Qa5 {[%clk 0:00:48]}  Nc5 {[%clk 0:01:53]} 28. Rbb1 {[%clk 0:00:32]}  a6 {[%clk 0:01:30]} 29. bxa6 {[%clk 0:00:32]}  bxa6 {[%clk 0:01:31]} 30. Nb6 {[%clk 0:00:32]}  Qc7 {[%clk 0:01:31]} 31. Qa2+ {[%clk 0:00:28]}  Kg7 {[%clk 0:01:28]} 32. Nxc8 {[%clk 0:00:28]}  Rxc8 {[%clk 0:01:28]} 33. Qd5 {[%clk 0:00:27]}  Rd8 {[%clk 0:01:28]} 34. Qc4 {[%clk 0:00:27]}  Qa5 {[%clk 0:01:25]} 35. Ra1 {[%clk 0:00:26]}  Qd2 {[%clk 0:01:24]} 36. Red1 {[%clk 0:00:22]}  Qe2 {[%clk 0:01:24]} 37. Re1 {[%clk 0:00:22]}  Qd2 {[%clk 0:01:23]} 38. Red1 {[%clk 0:00:21]}  Qe2 {[%clk 0:01:23]} 39. Re1 {[%clk 0:00:21]}  Qd2 {[%clk 0:01:23]} 1/2-1/2


[Site "https://www.chess.com"]

[Event "Titled Tuesday Blitz April 05 Late 2022"]
[White "Derraugh, Geordie"]
[Black "Rudzinska, Michalina"]
[WhiteFideId "2603950"]
[BlackFideId "1172883"]
[WhiteElo "2416"]
[BlackElo "2294"]
[Result "1-0"]
[Round "11"]
[TimeControl "180+1"]
[Date "2022.04.06"]
[WhiteClock "0:02:25"]
[BlackClock "0:01:28"]

1. e4 {[%clk 0:03:00]}  c5 {[%clk 0:02:52]} 2. Nf3 {[%clk 0:03:00]}  e6 {[%clk 0:02:51]} 3. g3 {[%clk 0:02:58]}  Nc6 {[%clk 0:02:49]} 4. Bg2 {[%clk 0:02:59]}  d6 {[%clk 0:02:48]} 5. O-O {[%clk 0:02:59]}  Nf6 {[%clk 0:02:48]} 6. Qe2 {[%clk 0:02:58]}  Be7 {[%clk 0:02:42]} 7. Rd1 {[%clk 0:02:58]}  Nd4 {[%clk 0:02:38]} 8. Nxd4 {[%clk 0:02:58]}  cxd4 {[%clk 0:02:38]} 9. e5 {[%clk 0:02:58]}  dxe5 {[%clk 0:02:31]} 10. Qxe5 {[%clk 0:02:59]}  O-O {[%clk 0:02:26]} 11. b3 {[%clk 0:02:56]}  Qb6 {[%clk 0:02:19]} 12. Bb2 {[%clk 0:02:55]}  Rd8 {[%clk 0:02:17]} 13. Na3 {[%clk 0:02:55]}  Bc5 {[%clk 0:02:03]} 14. Nc4 {[%clk 0:02:54]}  Qb5 {[%clk 0:01:43]} 15. a4 {[%clk 0:02:51]}  Qb4 {[%clk 0:01:37]} 16. Ba3 {[%clk 0:02:49]}  Nd7 {[%clk 0:01:28]} 17. Qc7 {[%clk 0:02:25]} 1-0


[Site "https://www.chess.com"]

[Event "Titled Tuesday Blitz April 05 Late 2022"]
[White "Dreev, Aleksey"]
[Black "Bortnyk, Olexandr"]
[WhiteFideId "4100107"]
[BlackFideId "14120828"]
[WhiteElo "2625"]
[BlackElo "2723"]
[Result "0-1"]
[Round "11"]
[TimeControl "180+1"]
[Date "2022.04.05"]
[WhiteClock "0:00:06"]
[BlackClock "0:01:11"]

1. d4 {[%clk 0:02:59]}  d6 {[%clk 0:03:00]} 2. Nf3 {[%clk 0:02:59]}  Nf6 {[%clk 0:03:00]} 3. c4 {[%clk 0:02:56]}  g6 {[%clk 0:03:00]} 4. Nc3 {[%clk 0:02:56]}  Bf5 {[%clk 0:03:01]} 5. Qb3 {[%clk 0:02:55]}  Qc8 {[%clk 0:03:00]} 6. g3 {[%clk 0:02:55]}  Bg7 {[%clk 0:03:00]} 7. Bg2 {[%clk 0:02:55]}  Nc6 {[%clk 0:03:00]} 8. O-O {[%clk 0:02:55]}  O-O {[%clk 0:03:00]} 9. d5 {[%clk 0:02:19]}  Na5 {[%clk 0:03:00]} 10. Qa4 {[%clk 0:02:20]}  b6 {[%clk 0:02:59]} 11. Nd4 {[%clk 0:02:18]}  Bh3 {[%clk 0:02:58]} 12. Rd1 {[%clk 0:01:58]}  Bxg2 {[%clk 0:02:46]} 13. Kxg2 {[%clk 0:01:59]}  Nd7 {[%clk 0:02:40]} 14. b3 {[%clk 0:01:39]}  Nc5 {[%clk 0:02:29]} 15. Qa3 {[%clk 0:01:39]}  e5 {[%clk 0:02:29]} 16. Nc2 {[%clk 0:01:17]}  a6 {[%clk 0:02:15]} 17. Ne3 {[%clk 0:01:14]}  Nab7 {[%clk 0:02:12]} 18. b4 {[%clk 0:01:07]}  Nd7 {[%clk 0:02:12]} 19. Qb3 {[%clk 0:00:49]}  a5 {[%clk 0:02:11]} 20. b5 {[%clk 0:00:49]}  f5 {[%clk 0:02:09]} 21. Qc2 {[%clk 0:00:47]}  Nbc5 {[%clk 0:02:08]} 22. Bb2 {[%clk 0:00:47]}  f4 {[%clk 0:02:06]} 23. Nf1 {[%clk 0:00:44]}  Nf6 {[%clk 0:02:06]} 24. f3 {[%clk 0:00:43]}  Qd7 {[%clk 0:01:57]} 25. Nd2 {[%clk 0:00:43]}  Rae8 {[%clk 0:01:44]} 26. Ba3 {[%clk 0:00:43]}  e4 {[%clk 0:01:40]} 27. Bxc5 {[%clk 0:00:39]}  exf3+ {[%clk 0:01:41]} 28. exf3 {[%clk 0:00:38]}  bxc5 {[%clk 0:01:39]} 29. Re1 {[%clk 0:00:30]}  Re3 {[%clk 0:01:39]} 30. Rxe3 {[%clk 0:00:23]}  fxe3 {[%clk 0:01:40]} 31. Nf1 {[%clk 0:00:23]}  Ng4 {[%clk 0:01:38]} 32. Re1 {[%clk 0:00:19]}  Bd4 {[%clk 0:01:37]} 33. Ne4 {[%clk 0:00:15]}  Ne5 {[%clk 0:01:25]} 34. f4 {[%clk 0:00:15]}  Qg4 {[%clk 0:01:17]} 35. Qe2 {[%clk 0:00:11]}  Qxe2+ {[%clk 0:01:16]} 36. Rxe2 {[%clk 0:00:12]}  Nxc4 {[%clk 0:01:16]} 37. Ng5 {[%clk 0:00:12]}  Rb8 {[%clk 0:01:15]} 38. a4 {[%clk 0:00:11]}  Nb6 {[%clk 0:01:16]} 39. Ne6 {[%clk 0:00:10]}  Nxd5 {[%clk 0:01:16]} 40. Kf3 {[%clk 0:00:10]}  Nc3 {[%clk 0:01:15]} 41. Re1 {[%clk 0:00:10]}  e2 {[%clk 0:01:15]} 42. Nd2 {[%clk 0:00:10]}  Nxa4 {[%clk 0:01:15]} 43. Rxe2 {[%clk 0:00:09]}  Nc3 {[%clk 0:01:15]} 44. Re1 {[%clk 0:00:09]}  Nxb5 {[%clk 0:01:16]} 45. Ne4 {[%clk 0:00:09]}  h6 {[%clk 0:01:16]} 46. g4 {[%clk 0:00:09]}  Kf7 {[%clk 0:01:15]} 47. f5 {[%clk 0:00:09]}  gxf5 {[%clk 0:01:16]} 48. gxf5 {[%clk 0:00:10]}  Be5 {[%clk 0:01:17]} 49. Rg1 {[%clk 0:00:07]}  Nd4+ {[%clk 0:01:17]} 50. Nxd4 {[%clk 0:00:07]}  cxd4 {[%clk 0:01:17]} 51. Rc1 {[%clk 0:00:07]}  c5 {[%clk 0:01:16]} 52. Ra1 {[%clk 0:00:07]}  Rb3+ {[%clk 0:01:08]} 53. Kg4 {[%clk 0:00:07]}  d3 {[%clk 0:01:09]} 54. Rxa5 {[%clk 0:00:06]}  Rb4 {[%clk 0:01:09]} 55. Ra7+ {[%clk 0:00:06]}  Ke8 {[%clk 0:01:10]} 56. Ra8+ {[%clk 0:00:05]}  Kd7 {[%clk 0:01:10]} 57. Kf3 {[%clk 0:00:06]}  Rxe4 {[%clk 0:01:10]} 58. Ra7+ {[%clk 0:00:06]}  Kc6 {[%clk 0:01:11]} 0-1


[Site "https://www.chess.com"]